[Event "Kvibergspelen September 2019"]
[Site "Prioritet Serneke Arena, Krutvagen 2, Gothenburg, Sweden"]
[Date "2019.09.27"]
[Round "4.10"]
[White "Sorensen, Hampus"]
[Black "Trost, Edvin"]
[Result "1/2-1/2"]
[TimeControl "15 minutes + 5 seconds per move from move one (Round 1 - 4) / 90 minutes + 30 seconds per move from move one (Round 5 - 8)"]
[WhiteTitle "FM"]
[WhiteFideId "8703884"]
[BlackFideId "1729519"]
[WhiteElo "2319"]
[BlackElo "1982"]

1. d4 Nf6 {[%emt 00:00:02]} 2. c4 {[%clk 00:14:23]} {[%emt 00:00:50]} e6 {[%clk
00:15:03]} {[%emt 00:00:12]} 3. Nf3 {[%clk 00:14:25]} {[%emt 00:00:03]} d5
{[%clk 00:15:07]} 4. Bg5 {[%clk 00:14:25]} {[%emt 00:00:05]} a6 {[%clk
00:15:08]} {[%emt 00:00:05]} 5. e3 {[%clk 00:13:38]} {[%emt 00:00:52]} Nbd7
{[%clk 00:14:35]} {[%emt 00:00:38]} 6. Nbd2 {[%clk 00:13:27]} {[%emt 00:00:16]}
Be7 {[%clk 00:14:24]} {[%emt 00:00:15]} 7. Be2 {[%clk 00:13:21]} {[%emt
00:00:11]} b6 {[%clk 00:14:07]} {[%emt 00:00:22]} 8. O-O {[%clk 00:13:19]}
{[%emt 00:00:07]} Bb7 {[%clk 00:14:07]} {[%emt 00:00:06]} 9. Rc1 {[%clk
00:13:03]} {[%emt 00:00:21]} O-O {[%clk 00:14:04]} {[%emt 00:00:09]} 10. a3
{[%clk 00:12:59]} {[%emt 00:00:09]} c5 {[%clk 00:13:51]} {[%emt 00:00:18]} 11.
h3 {[%clk 00:12:20]} {[%emt 00:00:43]} h6 {[%clk 00:13:04]} {[%emt 00:00:53]}
12. Bh4 {[%clk 00:11:35]} {[%emt 00:00:49]} dxc4 {[%clk 00:12:13]} {[%emt
00:00:56]} 13. Nxc4 {[%clk 00:11:30]} {[%emt 00:00:10]} b5 {[%clk 00:11:58]}
{[%emt 00:00:20]} 14. Ncd2 {[%clk 00:10:27]} {[%emt 00:01:08]} Rc8 {[%clk
00:11:39]} {[%emt 00:00:23]} 15. Bg3 {[%clk 00:09:53]} {[%emt 00:00:40]} Qb6
{[%clk 00:09:59]} {[%emt 00:01:46]} 16. Bd3 {[%clk 00:08:59]} {[%emt 00:00:59]}
cxd4 {[%clk 00:09:43]} {[%emt 00:00:21]} 17. Rxc8 {[%clk 00:08:44]} {[%emt
00:00:21]} Rxc8 {[%clk 00:09:40]} {[%emt 00:00:07]} 18. Nxd4 {[%clk 00:08:44]}
{[%emt 00:00:05]} Bd6 {[%clk 00:09:31]} {[%emt 00:00:14]} 19. Bxd6 {[%clk
00:08:15]} {[%emt 00:00:34]} Qxd6 {[%clk 00:09:35]} {[%emt 00:00:01]} 20. Bb1
{[%clk 00:07:58]} {[%emt 00:00:23]} Qd5 {[%clk 00:08:59]} {[%emt 00:00:41]} 21.
Qf3 {[%clk 00:07:33]} {[%emt 00:00:29]} Ne5 {[%clk 00:08:11]} {[%emt 00:00:54]}
22. Qxd5 {[%clk 00:07:25]} {[%emt 00:00:12]} Nxd5 {[%clk 00:07:49]} {[%emt
00:00:27]} 23. N4b3 {[%clk 00:05:47]} {[%emt 00:01:42]} Nb6 {[%clk 00:05:47]}
{[%emt 00:02:07]} 24. Na5 {[%clk 00:04:31]} {[%emt 00:01:21]} Ba8 {[%clk
00:05:51]} {[%emt 00:00:01]} 25. f4 {[%clk 00:03:14]} {[%emt 00:01:22]} Nc6
{[%clk 00:05:30]} {[%emt 00:00:27]} 26. Nxc6 {[%clk 00:03:09]} {[%emt
00:00:10]} Rxc6 {[%clk 00:05:18]} {[%emt 00:00:17]} 27. Be4 {[%clk 00:02:53]}
{[%emt 00:00:21]} Rd6 {[%clk 00:04:42]} {[%emt 00:00:42]} 28. Bxa8 {[%clk
00:02:56]} {[%emt 00:00:02]} Rxd2 {[%clk 00:04:46]} {[%emt 00:00:01]} 29. Bb7
{[%clk 00:02:32]} {[%emt 00:00:30]} Rxb2 {[%clk 00:04:09]} {[%emt 00:00:42]} 30.
Bxa6 {[%emt 00:00:01]} Nc4 31. Rf2 {[%clk 00:00:46]} {[%emt 00:01:54]} Rb1+
{[%clk 00:01:22]} {[%emt 00:02:56]} 32. Rf1 {[%clk 00:00:50]} {[%emt 00:00:01]}
Rb3 {[%clk 00:00:30]} {[%emt 00:00:57]} 33. a4 {[%clk 00:00:55]} Nxe3 {[%clk
00:00:28]} {[%emt 00:00:07]} 34. Ra1 {[%clk 00:00:59]} bxa4 {[%clk 00:00:19]}
{[%emt 00:00:15]} 35. Rxa4 {[%clk 00:01:02]} {[%emt 00:00:02]} Rb2 {[%clk
00:00:15]} {[%emt 00:00:08]} 36. g4 {[%clk 00:01:05]} {[%emt 00:00:01]} g6
{[%clk 00:00:12]} {[%emt 00:00:08]} 37. Bd3 {[%clk 00:00:30]} {[%emt 00:00:39]}
Rd2 {[%clk 00:00:09]} {[%emt 00:00:09]} 38. Be4 {[%clk 00:00:26]} {[%emt
00:00:09]} Nd5 {[%clk 00:00:06]} {[%emt 00:00:08]} 39. Bxd5 {[%clk 00:00:10]}
{[%emt 00:00:21]} Rxd5 {[%clk 00:00:08]} {[%emt 00:00:04]} 40. Kg2 {[%clk
00:00:12]} {[%emt 00:00:02]} Rd3 {[%clk 00:00:10]} {[%emt 00:00:03]} 41. Ra5
{[%clk 00:00:13]} {[%emt 00:00:04]} Kg7 {[%clk 00:00:14]} 42. Ra4 {[%clk
00:00:15]} {[%emt 00:00:03]} Kf6 {[%clk 00:00:17]} {[%emt 00:00:02]} 43. Rb4
{[%clk 00:00:17]} {[%emt 00:00:03]} Rd2+ {[%clk 00:00:18]} {[%emt 00:00:04]} 44.
Kg3 {[%clk 00:00:20]} {[%emt 00:00:02]} Rd3+ {[%clk 00:00:22]} {[%emt
00:00:01]} 45. Kg2 {[%clk 00:00:24]} Rd5 {[%clk 00:00:16]} {[%emt 00:00:12]} 46.
Ra4 {[%clk 00:00:27]} {[%emt 00:00:02]} h5 {[%clk 00:00:17]} {[%emt 00:00:03]}
47. Kg3 {[%clk 00:00:24]} {[%emt 00:00:07]} Rd3+ {[%clk 00:00:16]} {[%emt
00:00:05]} 48. Kg2 {[%clk 00:00:22]} {[%emt 00:00:07]} h4 {[%clk 00:00:15]}
{[%emt 00:00:07]} 49. Rb4 {[%clk 00:00:12]} {[%emt 00:00:15]} Rd5 {[%clk
00:00:15]} {[%emt 00:00:04]} 50. Ra4 {[%clk 00:00:15]} {[%emt 00:00:02]} g5
{[%clk 00:00:08]} {[%emt 00:00:13]} 51. fxg5+ {[%clk 00:00:09]} {[%emt
00:00:11]} Kxg5 {[%clk 00:00:11]} {[%emt 00:00:01]} 52. Ra7 {[%clk 00:00:13]}
f6 {[%clk 00:00:08]} {[%emt 00:00:09]} 53. Ra4 {[%clk 00:00:10]} {[%emt
00:00:07]} Rd2+ {[%clk 00:00:10]} {[%emt 00:00:03]} 54. Kg1 {[%clk 00:00:11]}
{[%emt 00:00:05]} e5 {[%clk 00:00:08]} {[%emt 00:00:07]} 55. Kh1 {[%clk
00:00:08]} {[%emt 00:00:08]} Rd4 {[%clk 00:00:09]} {[%emt 00:00:04]} 56. Ra5
{[%clk 00:00:08]} {[%emt 00:00:04]} Kf4 {[%clk 00:00:12]} {[%emt 00:00:02]} 57.
Ra3 {[%clk 00:00:12]} {[%emt 00:00:01]} Rd1+ {[%clk 00:00:13]} {[%emt
00:00:03]} 58. Kg2 {[%clk 00:00:16]} {[%emt 00:00:02]} Rd2+ {[%clk 00:00:17]}
59. Kf1 {[%clk 00:00:18]} {[%emt 00:00:02]} e4 {[%clk 00:00:11]} {[%emt
00:00:12]} 60. Ra6 {[%clk 00:00:23]} Kg3 {[%emt 00:00:10]} 61. Rxf6 {[%clk
00:00:22]} {[%emt 00:00:05]} Kxh3 {[%clk 00:00:10]} 62. g5 {[%clk 00:00:27]}
Rd5 {[%clk 00:00:07]} {[%emt 00:00:08]} 63. Rf4 {[%clk 00:00:14]} {[%emt
00:00:18]} Rxg5 {[%clk 00:00:06]} {[%emt 00:00:06]} 64. Rxe4 {[%clk 00:00:18]}
Rf5+ {[%clk 00:00:07]} {[%emt 00:00:05]} 65. Kg1 {[%clk 00:00:21]} Rf3 {[%clk
00:00:08]} {[%emt 00:00:03]} 66. Re8 {[%clk 00:00:22]} {[%emt 00:00:05]} Ra3
{[%clk 00:00:09]} {[%emt 00:00:04]} 67. Rh8 {[%clk 00:00:12]} {[%emt 00:00:15]}
Ra1+ {[%clk 00:00:08]} {[%emt 00:00:06]} 68. Kf2 {[%clk 00:00:16]} Rh1 {[%clk
00:00:06]} {[%emt 00:00:06]} 69. Ra8 {[%clk 00:00:14]} {[%emt 00:00:08]} Kh2
{[%clk 00:00:07]} {[%emt 00:00:04]} 70. Ra2 {[%clk 00:00:10]} {[%emt 00:00:08]}
Rg1 {[%clk 00:00:07]} {[%emt 00:00:06]} 71. Kf3+ {[%clk 00:00:09]} {[%emt
00:00:06]} Kh1 {[%clk 00:00:07]} {[%emt 00:00:05]} 72. Ra4 {[%clk 00:00:09]}
{[%emt 00:00:06]} h3 {[%clk 00:00:09]} {[%emt 00:00:02]} 73. Ra2 {[%clk
00:00:10]} {[%emt 00:00:04]} h2 {[%clk 00:00:08]} {[%emt 00:00:06]} 74. Rb2
{[%clk 00:00:07]} {[%emt 00:00:08]} Rc1 {[%clk 00:00:07]} {[%emt 00:00:05]} 75.
Kf2 {[%clk 00:00:07]} {[%emt 00:00:06]} Rg1 {[%clk 00:00:06]} {[%emt 00:00:06]}
76. Kf3 {[%clk 00:00:10]} {[%emt 00:00:03]} Rf1+ {[%clk 00:00:07]} {[%emt
00:00:04]} 77. Kg3 {[%clk 00:00:12]} {[%emt 00:00:03]} Rg1+ {[%clk 00:00:08]}
{[%emt 00:00:04]} 78. Kh3 {[%clk 00:00:10]} {[%emt 00:00:06]} Rd1 {[%clk
00:00:07]} {[%emt 00:00:06]} 79. Rxh2+ {[%clk 00:00:13]} {[%emt 00:00:02]}
1/2-1/2

[Event "Kvibergspelen September 2019"]
[Site "Prioritet Serneke Arena, Krutvagen 2, Gothenburg, Sweden"]
[Date "2019.09.27"]
[Round "4.11"]
[White "Carlsson, Ludvig"]
[Black "Sidorchuk, Dmitry"]
[Result "1-0"]
[TimeControl "15 minutes + 5 seconds per move from move one (Round 1 - 4) / 90 minutes + 30 seconds per move from move one (Round 5 - 8)"]
[WhiteTitle "CM"]
[WhiteFideId "1727010"]
[BlackFideId "14110903"]
[WhiteElo "2066"]
[BlackElo "2266"]

1. d4 {[%clk 00:15:08]} {[%emt 00:00:01]} d5 {[%clk 00:15:09]} {[%emt
00:00:02]} 2. c4 {[%clk 00:15:05]} {[%emt 00:00:08]} c6 {[%clk 00:15:10]}
{[%emt 00:00:04]} 3. cxd5 {[%clk 00:15:07]} {[%emt 00:00:03]} cxd5 {[%clk
00:15:11]} {[%emt 00:00:03]} 4. Nc3 {[%clk 00:15:10]} {[%emt 00:00:02]} Nf6
{[%clk 00:15:08]} {[%emt 00:00:08]} 5. Nf3 {[%clk 00:15:13]} {[%emt 00:00:02]}
e6 {[%clk 00:15:09]} {[%emt 00:00:04]} 6. Bf4 {[%clk 00:15:10]} {[%emt
00:00:08]} Bd6 {[%clk 00:14:59]} {[%emt 00:00:15]} 7. Bg3 {[%clk 00:15:03]}
{[%emt 00:00:12]} O-O {[%clk 00:14:53]} {[%emt 00:00:12]} 8. e3 {[%clk
00:15:06]} {[%emt 00:00:01]} Nc6 {[%clk 00:14:11]} {[%emt 00:00:46]} 9. Bd3
{[%clk 00:15:05]} {[%emt 00:00:06]} a6 {[%clk 00:14:01]} {[%emt 00:00:16]} 10.
Ne5 {[%clk 00:14:30]} {[%emt 00:00:39]} Ne7 {[%clk 00:10:15]} {[%emt 00:03:52]}
11. Qf3 {[%clk 00:12:59]} {[%emt 00:01:36]} b5 {[%clk 00:08:46]} {[%emt
00:01:35]} 12. O-O {[%clk 00:12:47]} {[%emt 00:00:16]} Bb7 {[%clk 00:08:26]}
{[%emt 00:00:26]} 13. Bh4 {[%clk 00:11:53]} {[%emt 00:00:58]} Ng6 {[%clk
00:07:50]} {[%emt 00:00:41]} 14. Nxg6 {[%clk 00:10:29]} {[%emt 00:01:29]} hxg6
{[%clk 00:07:13]} {[%emt 00:00:43]} 15. Rfc1 {[%clk 00:10:00]} {[%emt
00:00:34]} Be7 {[%clk 00:06:16]} {[%emt 00:01:03]} 16. Rc2 {[%clk 00:09:35]}
{[%emt 00:00:29]} Qd7 {[%clk 00:05:39]} {[%emt 00:00:42]} 17. Rac1 {[%clk
00:08:58]} {[%emt 00:00:42]} Rfc8 {[%clk 00:05:43]} {[%emt 00:00:02]} 18. Qd1
{[%clk 00:08:42]} {[%emt 00:00:20]} Ne8 {[%clk 00:03:36]} {[%emt 00:02:12]} 19.
Bxe7 {[%clk 00:08:38]} {[%emt 00:00:09]} Qxe7 {[%clk 00:03:40]} {[%emt
00:00:02]} 20. Qg4 {[%clk 00:07:38]} {[%emt 00:01:04]} Nd6 {[%clk 00:03:36]}
{[%emt 00:00:08]} 21. h4 {[%clk 00:07:25]} {[%emt 00:00:18]} Qf6 {[%clk
00:03:03]} {[%emt 00:00:39]} 22. a3 {[%clk 00:06:41]} {[%emt 00:00:49]} Nc4
{[%clk 00:02:34]} {[%emt 00:00:34]} 23. b3 {[%clk 00:06:43]} {[%emt 00:00:03]}
Nxa3 {[%clk 00:02:11]} {[%emt 00:00:28]} 24. Nxd5 {[%clk 00:06:44]} {[%emt
00:00:03]} Qd8 {[%clk 00:01:49]} {[%emt 00:00:27]} 25. Rxc8 {[%clk 00:06:15]}
{[%emt 00:00:35]} Rxc8 {[%clk 00:01:50]} {[%emt 00:00:04]} 26. Rxc8 {[%clk
00:06:17]} {[%emt 00:00:02]} Bxc8 {[%clk 00:01:54]} {[%emt 00:00:02]} 27. Nc3
{[%clk 00:04:55]} {[%emt 00:01:27]} b4 {[%clk 00:01:10]} {[%emt 00:00:50]} 28.
Na4 {[%clk 00:04:27]} {[%emt 00:00:33]} Qd5 {[%clk 00:00:23]} {[%emt 00:00:52]}
29. Nc5 {[%clk 00:04:28]} {[%emt 00:00:04]} a5 {[%clk 00:00:23]} {[%emt
00:00:05]} 30. Qf4 {[%clk 00:04:20]} {[%emt 00:00:12]} Bd7 {[%emt 00:00:24]}
1-0

[Event "Kvibergspelen September 2019"]
[Site "Prioritet Serneke Arena, Krutvagen 2, Gothenburg, Sweden"]
[Date "2019.09.27"]
[Round "4.12"]
[White "Seo, Jung Hyun"]
[Black "Ernst, Thomas"]
[Result "0-1"]
[TimeControl "15 minutes + 5 seconds per move from move one (Round 1 - 4) / 90 minutes + 30 seconds per move from move one (Round 5 - 8)"]
[BlackTitle "GM"]
[WhiteFideId "1735667"]
[BlackFideId "1700065"]
[WhiteElo "1685"]
[BlackElo "2328"]

1. e4 {[%clk 00:15:08]} c5 {[%clk 00:15:09]} {[%emt 00:00:02]} 2. Nf3 {[%clk
00:15:11]} {[%emt 00:00:02]} Nc6 {[%clk 00:15:11]} {[%emt 00:00:03]} 3. d4
{[%clk 00:15:14]} {[%emt 00:00:02]} cxd4 {[%clk 00:15:14]} {[%emt 00:00:02]} 4.
Nxd4 {[%clk 00:15:18]} {[%emt 00:00:01]} Nf6 {[%clk 00:15:17]} {[%emt
00:00:02]} 5. Nc3 {[%clk 00:15:22]} {[%emt 00:00:01]} d6 {[%clk 00:15:20]}
{[%emt 00:00:02]} 6. f3 {[%clk 00:15:24]} {[%emt 00:00:03]} g6 {[%clk
00:15:17]} {[%emt 00:00:08]} 7. Be3 {[%clk 00:15:27]} {[%emt 00:00:02]} Bg7
{[%clk 00:15:21]} {[%emt 00:00:02]} 8. Qd2 {[%clk 00:15:31]} {[%emt 00:00:01]}
O-O {[%clk 00:15:23]} {[%emt 00:00:02]} 9. O-O-O {[%clk 00:15:34]} {[%emt
00:00:02]} d5 {[%clk 00:15:25]} {[%emt 00:00:03]} 10. Qe1 {[%clk 00:15:37]}
{[%emt 00:00:02]} e5 {[%clk 00:15:17]} {[%emt 00:00:13]} 11. Nxc6 {[%clk
00:15:40]} {[%emt 00:00:02]} bxc6 {[%clk 00:15:20]} {[%emt 00:00:02]} 12. exd5
{[%clk 00:15:44]} {[%emt 00:00:01]} cxd5 {[%clk 00:15:03]} {[%emt 00:00:23]} 13.
Bg5 {[%clk 00:15:45]} {[%emt 00:00:03]} Be6 {[%clk 00:15:05]} {[%emt 00:00:03]}
14. Qxe5 {[%clk 00:15:44]} {[%emt 00:00:06]} h6 {[%clk 00:15:08]} {[%emt
00:00:02]} 15. Bxf6 {[%clk 00:15:10]} {[%emt 00:00:39]} Bxf6 {[%clk 00:15:11]}
{[%emt 00:00:02]} 16. Qe1 {[%clk 00:15:14]} Rb8 {[%clk 00:13:50]} {[%emt
00:01:28]} 17. Be2 {[%clk 00:13:38]} {[%emt 00:01:41]} Qa5 {[%clk 00:13:09]}
{[%emt 00:00:45]} 18. a3 {[%clk 00:11:57]} {[%emt 00:01:47]} Rfc8 {[%clk
00:09:02]} {[%emt 00:04:12]} 19. Rd3 {[%clk 00:11:39]} {[%emt 00:00:22]} Qb6
{[%clk 00:08:50]} {[%emt 00:00:17]} 20. b3 {[%clk 00:11:05]} {[%emt 00:00:39]}
Qc6 {[%clk 00:08:33]} {[%emt 00:00:22]} 21. Kb2 {[%clk 00:10:08]} {[%emt
00:01:03]} d4 {[%clk 00:08:22]} {[%emt 00:00:16]} 22. Ne4 {[%clk 00:09:58]}
{[%emt 00:00:15]} Qxc2+ {[%clk 00:08:22]} {[%emt 00:00:05]} 23. Ka1 {[%clk
00:10:03]} Bg7 {[%clk 00:07:37]} {[%emt 00:00:49]} 24. Qd1 {[%clk 00:09:22]}
{[%emt 00:00:45]} Bxb3 {[%clk 00:07:19]} {[%emt 00:00:23]} 25. Qxc2 {[%clk
00:08:40]} {[%emt 00:00:48]} Bxc2 {[%clk 00:07:21]} {[%emt 00:00:03]} 26. Rd2
{[%clk 00:08:44]} {[%emt 00:00:01]} d3+ {[%clk 00:07:17]} {[%emt 00:00:09]} 0-1

[Event "Kvibergspelen September 2019"]
[Site "Prioritet Serneke Arena, Krutvagen 2, Gothenburg, Sweden"]
[Date "2019.09.27"]
[Round "4.13"]
[White "Cramling, Pia"]
[Black "Bengtsson, Siv"]
[Result "1-0"]
[TimeControl "15 minutes + 5 seconds per move from move one (Round 1 - 4) / 90 minutes + 30 seconds per move from move one (Round 5 - 8)"]
[WhiteTitle "GM"]
[WhiteFideId "1700030"]
[BlackFideId "1701673"]
[WhiteElo "2487"]
[BlackElo "2086"]

1. c4 {[%clk 00:15:04]} {[%emt 00:00:05]} Nf6 {[%clk 00:15:03]} {[%emt
00:00:08]} 2. Nc3 {[%clk 00:15:04]} {[%emt 00:00:04]} d5 {[%clk 00:15:03]}
{[%emt 00:00:05]} 3. cxd5 {[%clk 00:15:06]} {[%emt 00:00:03]} Nxd5 {[%clk
00:15:07]} {[%emt 00:00:02]} 4. g3 {[%clk 00:14:59]} {[%emt 00:00:11]} g6
{[%clk 00:14:43]} {[%emt 00:00:29]} 5. Bg2 {[%clk 00:14:58]} {[%emt 00:00:05]}
Nxc3 {[%clk 00:14:47]} {[%emt 00:00:02]} 6. bxc3 {[%clk 00:15:01]} {[%emt
00:00:03]} Bg7 {[%clk 00:14:48]} {[%emt 00:00:04]} 7. Rb1 {[%clk 00:14:59]}
{[%emt 00:00:07]} Nc6 {[%clk 00:13:43]} {[%emt 00:01:09]} 8. Bxc6+ {[%clk
00:14:07]} {[%emt 00:00:57]} bxc6 {[%clk 00:13:46]} {[%emt 00:00:02]} 9. Qa4
{[%clk 00:14:09]} {[%emt 00:00:03]} Bd7 {[%clk 00:12:10]} {[%emt 00:01:42]} 10.
Nf3 {[%clk 00:13:37]} {[%emt 00:00:36]} O-O {[%clk 00:12:11]} {[%emt 00:00:04]}
11. O-O {[%clk 00:13:31]} {[%emt 00:00:11]} e5 {[%clk 00:11:45]} {[%emt
00:00:31]} 12. d3 {[%clk 00:13:13]} {[%emt 00:00:22]} Re8 {[%clk 00:10:34]}
{[%emt 00:01:17]} 13. Ng5 {[%clk 00:12:53]} {[%emt 00:00:24]} Qe7 {[%clk
00:10:01]} {[%emt 00:00:40]} 14. Ne4 {[%clk 00:12:22]} {[%emt 00:00:35]} c5
{[%clk 00:08:46]} {[%emt 00:01:21]} 15. Qc4 {[%clk 00:08:15]} {[%emt 00:04:12]}
Be6 {[%clk 00:06:07]} {[%emt 00:02:45]} 16. Qxc5 {[%clk 00:08:17]} {[%emt
00:00:02]} Qxc5 {[%clk 00:05:53]} {[%emt 00:00:19]} 17. Nxc5 {[%clk 00:08:20]}
{[%emt 00:00:02]} Bxa2 {[%clk 00:05:56]} {[%emt 00:00:02]} 18. Rb7 {[%clk
00:08:02]} {[%emt 00:00:22]} e4 {[%clk 00:05:09]} {[%emt 00:00:53]} 19. d4
{[%clk 00:07:14]} {[%emt 00:00:53]} Re7 {[%clk 00:05:01]} {[%emt 00:00:13]} 20.
Bf4 {[%clk 00:06:58]} {[%emt 00:00:21]} Bc4 {[%clk 00:04:34]} {[%emt 00:00:33]}
21. Ra1 {[%clk 00:06:23]} {[%emt 00:00:39]} a5 {[%clk 00:03:51]} {[%emt
00:00:49]} 22. Rxa5 {[%clk 00:05:29]} {[%emt 00:00:59]} Rc8 {[%clk 00:02:56]}
{[%emt 00:00:59]} 23. Kf1 {[%clk 00:05:07]} {[%emt 00:00:26]} h6 {[%clk
00:02:26]} {[%emt 00:00:36]} 24. h4 {[%clk 00:04:34]} {[%emt 00:00:38]} Bd5
{[%clk 00:02:19]} {[%emt 00:00:13]} 25. Rb4 {[%clk 00:04:38]} {[%emt 00:00:02]}
f5 {[%clk 00:02:03]} {[%emt 00:00:20]} 26. e3 {[%clk 00:04:27]} {[%emt
00:00:15]} Kf7 {[%clk 00:02:06]} {[%emt 00:00:03]} 27. c4 {[%clk 00:04:31]}
{[%emt 00:00:01]} Bc6 {[%clk 00:02:10]} {[%emt 00:00:01]} 28. Ra6 {[%clk
00:04:25]} {[%emt 00:00:11]} Be8 {[%clk 00:02:01]} {[%emt 00:00:14]} 29. Rb7
{[%clk 00:04:22]} {[%emt 00:00:07]} Bf6 {[%clk 00:01:54]} {[%emt 00:00:12]} 30.
Bxh6 {[%clk 00:04:23]} {[%emt 00:00:04]} c6 {[%clk 00:01:43]} {[%emt 00:00:17]}
31. Rxe7+ {[%clk 00:04:19]} {[%emt 00:00:08]} Bxe7 {[%clk 00:01:45]} {[%emt
00:00:03]} 32. Ra7 {[%clk 00:04:22]} {[%emt 00:00:02]} 1-0

[Event "Kvibergspelen September 2019"]
[Site "Prioritet Serneke Arena, Krutvagen 2, Gothenburg, Sweden"]
[Date "2019.09.27"]
[Round "4.14"]
[White "Bellon Lopez, Juan"]
[Black "Ronneland, Daniel"]
[Result "1-0"]
[TimeControl "15 minutes + 5 seconds per move from move one (Round 1 - 4) / 90 minutes + 30 seconds per move from move one (Round 5 - 8)"]
[WhiteTitle "GM"]
[WhiteFideId "2200031"]
[BlackFideId "1702130"]
[WhiteElo "2334"]
[BlackElo "2137"]

1. d4 {[%clk 00:15:10]} {[%emt 00:02:18]} d5 {[%clk 00:15:01]} {[%emt
00:00:09]} 2. Bg5 {[%clk 00:15:12]} {[%emt 00:00:02]} Nf6 {[%clk 00:14:20]}
{[%emt 00:00:47]} 3. Bxf6 {[%clk 00:15:15]} {[%emt 00:00:03]} exf6 {[%clk
00:14:20]} {[%emt 00:00:04]} 4. e3 {[%clk 00:15:18]} {[%emt 00:00:03]} Bd6
{[%clk 00:14:00]} {[%emt 00:00:25]} 5. c4 {[%clk 00:15:21]} {[%emt 00:00:02]}
dxc4 {[%clk 00:13:37]} {[%emt 00:00:28]} 6. Bxc4 {[%clk 00:15:23]} {[%emt
00:00:03]} O-O {[%clk 00:13:22]} {[%emt 00:00:20]} 7. Nc3 {[%clk 00:15:27]}
{[%emt 00:00:01]} f5 {[%clk 00:12:17]} {[%emt 00:01:09]} 8. Nf3 {[%clk
00:15:28]} {[%emt 00:00:04]} c6 {[%clk 00:11:31]} {[%emt 00:00:51]} 9. Bd3
{[%clk 00:15:16]} {[%emt 00:00:18]} Re8 {[%clk 00:11:13]} {[%emt 00:00:23]} 10.
Qc2 {[%clk 00:15:14]} {[%emt 00:00:07]} g6 {[%clk 00:11:06]} {[%emt 00:00:11]}
11. O-O-O {[%clk 00:15:18]} {[%emt 00:00:02]} Na6 {[%clk 00:10:06]} {[%emt
00:01:05]} 12. Bxa6 {[%clk 00:13:37]} {[%emt 00:01:47]} bxa6 {[%clk 00:10:10]}
{[%emt 00:00:01]} 13. Na4 {[%clk 00:13:26]} {[%emt 00:00:15]} Qa5 {[%clk
00:08:34]} {[%emt 00:01:41]} 14. Nd2 {[%clk 00:13:20]} {[%emt 00:00:10]} Be6
{[%clk 00:07:18]} {[%emt 00:01:21]} 15. Nc4 {[%clk 00:13:18]} {[%emt 00:00:08]}
Bxc4 {[%clk 00:07:11]} {[%emt 00:00:11]} 16. Qxc4 {[%clk 00:13:22]} {[%emt
00:00:02]} Rac8 {[%clk 00:05:28]} {[%emt 00:01:48]} 17. Kb1 {[%clk 00:11:05]}
{[%emt 00:02:22]} c5 {[%clk 00:05:32]} {[%emt 00:00:01]} 18. dxc5 {[%emt
00:00:19]} Re4 {[%clk 00:04:28]} {[%emt 00:01:07]} 19. Rd4 {[%clk 00:10:37]}
{[%emt 00:00:21]} Bxc5 {[%clk 00:03:37]} {[%emt 00:00:57]} 20. Rxe4 {[%clk
00:10:14]} {[%emt 00:00:27]} fxe4 {[%clk 00:03:10]} {[%emt 00:00:32]} 21. Rd1
{[%emt 00:00:20]} 1-0